{"text_format":"1","workbook":"xlsx","n_sheets":1,"sheets":["Price bid-06"],"not_rendered":{"charts":0,"images":0,"macros":1,"external_links":1,"defined_names":0,"comments":0,"pivot_tables":0},"unopened":[],"bounds":{"document_bytes":16777216,"sheet_cells":100000,"rows_first":2000,"rows_last":500,"rows_between":2000,"halvings":0,"cell_chars":16384,"cell_head_chars":4096},"cells_cut":0,"cells_raw":0,"read":"whole","date_system":"1900"}

{"sheet":"Price bid-06","index":0,"n_rows":37,"n_cols":10,"rows_kept":37,"cut":false,"hidden":false,"merged":[[32,1,32,9],[33,1,33,9],[1,0,1,9],[0,0,0,9],[2,0,2,9],[3,0,3,9],[4,1,4,7],[28,0,28,2],[28,3,28,9],[31,1,31,9],[27,0,27,2]]}
["BHARAT HEAVY ELECTRICALS LIMITED JHANSI"]
["FACTORY CIVIL DEPARTMENT"]
["Price bid "]
[{"$f":"[1]Measurement!A3:I3","v":"Name of work - Construction of storage platform infront of scrap yard near Bay-11 in BHEL Jhansi."}]
[null,"Tender Enquiry No-FCX/TW/23/06                                                            "]
[]
["Sl. No.","DSR 2016 ","Description of Work","% allocation ","Unit ","Quantity ","Analysed rate of DSR-2016","Amount (RS)","Rate ","Amount (Rs)"]
[1,"1.1.1/68","By Mechanical Transport including loading, unloading and stacking Lime, moorum, building rubish  upto1 km .",{"$f":"H8*0.56/926942.32","v":1.0457366969716089E-3},"Cum",22,78.680000000000007,{"$f":"F8*G8","v":1730.96},{"$f":"J8/F8","v":0},{"$f":"$J$28*D8","v":0}]
[2,"1.1.2/68","By Mechanical Transport including loading, unloading and stacking Earth   upto 1 km .",{"$f":"H9*0.56/926942.32","v":1.0634536138127777E-2},"Cum",179,98.34,{"$f":"F9*G9","v":17602.86},{"$f":"J9/F9","v":0},{"$f":"$J$28*D9","v":0}]
[3,"2.6.1/76","Earth work in excavation by mechanical means (Hydraulic excavator)/ manual means over areas (exceeding 30 cm in depth, 1.5 m in width as well as 10 sqm on plan) including getting out and disposal of excavated earth lead upto 50 m and lift upto 1.5 m, as directed by Engineer-in-charge. All kinds of soil",2.3512129643622273E-2,"Cum",309,125.95,38918.550000000003,0,0]
[4,"2.8.1/76","Earth work in excavation by mechanical means (Hydraulic excavator)/ manual means in foundation trenches or drains (not exceeding 1.5 m in width or 10 sqm on plan), including dressing of sides and ramming of bottoms, lift upto 1.5 m, including getting out the excavated soil and disposal of surplus excavated soil as directed, within a lead of 50 m. All Kinds of soil",6.3332872750917237E-3,"Cum",63,166.4,10483.200000000001,0,0]
[5,"2.9.1/77","Excavation work by mechanical means (Hydraulic excavator)/ manual means in foundation trenches or drains (not exceeding 1.5m in width or 10 sqm on plan), including dressing of sides and ramming of bottoms, lift upto 1.5 m, including getting out the excavated soil and disposal of surplus excavated soils as directed, within a lead of 50 m. - ordinary rock",3.1663717759698369E-3,"Cum",19,275.85000000000002,5241.1500000000005,0,0]
[6,"2.9.3/77","Excavation work by mechanical means (Hydraulic excavator)/ manual means in foundation trenches or drains (not exceeding 1.5m in width or 10 sqm on plan), including dressing of sides and ramming of bottoms, lift upto 1.5 m, including getting out the excavated soil and disposal of surplus excavated soils as directed, within a lead of 50 m. - Hard rock (blasting prohibited)",3.9673665994665137E-3,"Cum",10,656.7,6567,0,0]
[7,"2.25/79","Filling available excavated earth (excluding rock) in trenches, plinth, sides of foundations etc. in layers not exceeding 20cm in depth, consolidating each deposited layer by ramming and watering, lead up to 50 m and lift upto 1.5 m.",1.8234976864579883E-2,"Cum",240.02800000000002,125.75,30183.521000000004,0,0]
[8,"4.1.6/88","Providing and laying in position cement concrete of specified grade excluding the cost of centering and shuttering - All work up to plinth level : 1:3:6 (1 Cement : 3 coarse sand (zone-III): 6 graded stone aggregate 40 mm nominal size).",0.28978957827710367,"Cum",148,3241.05,479675.4,0,0]
[9,"5.1.3/97","Providing and laying in position specified grade of reinforced cement concrete, excluding the cost of centering, shuttering, finishing and reinforcement - All work up to plinth level : 1:2:4 (1 cement : 2 coarse sand : 4 graded stone aggregate 20 mm nominal size).",0.31528905833105131,"Cum",148,3526.24,521883.51999999996,0,0]
[10,"5.9.1/98","Centering and shuttering including strutting, propping etc. and removal of form for all heights :  Foundations, footings, bases of columns, etc. for mass concrete",1.4038279318178071E-2,"Sqm",126,184.42,23236.92,0,0]
[11,"5.22.6/100","Steel reinforcement for R.C.C. work including straightening, cutting, bending, placing in position and binding all complete upto plinth level. Thermo-Mechanically Treated bars of grade Fe-500D or more.",2.6531297438226797E-2,"Kg",3996,10.99,43916.04,0,0]
[12,"6.1.2/111","Brick work with common burnt clay F.P.S. (non modular) bricks of class designation 7.5 in foundation and plinth in: Cement mortar 1:6 (1 cement : 6 coarse sand)",1.6565800555961241E-2,"Cum",7,3917.23,27420.61,0,0]
[13,"11.3.1/191","Cement concrete flooring 1:2:4 (1 cement : 2 coarse sand : 4 graded stone aggregate) finished with a floating coat of neat cement, including cement slurry, but excluding the cost of nosing of steps etc. complete.  40 mm thick with 20 mm nominal size stone aggregate. \n",0.22053788028579818,"Sqm",1482,246.32,365046.24,0,0]
[14,"13.1.2/227","12 mm cement plaster of mix : 1:6 (1 cement: 6 fine sand)",8.7590779111261213E-3,"Sqm",107,135.5,14498.5,0,0]
[15,"13.2.2/227","15 mm cement plaster on the rough side of single or half brick wall of mix : 1:6 (1 cement: 6 fine sand)",1.0052577165750724E-2,"Sqm",107,155.51,16639.57,0,0]
[16,"15.2.1/253","Demolishing cement concrete manually/ by mechanical means including disposal of material within 50 metres lead as per direction of Engineer - in - charge.\nNominal concrete 1:3:6 or richer mix (i/c equivalent design mix)",9.637674111157209E-3,"Cum",16,997.05,15952.8,0,0]
[17,"15.3/253","Demolishing R.C.C. work manually/ by mechanical means including stacking of steel bars and disposal of unserviceable material within 50 metres lead as per direction of Engineer - in- charge.",5.2724834054399426E-3,"Cum",6,1454.55,8727.2999999999993,0,0]
[18,"19.1.5/354","Providing, laying and jointing glazed stoneware pipes class SP-1 with stiff mixture of cement mortar in the proportion of 1:1 (1 cement : 1 fine sand) including testing of joints etc. complete : 300 mm diameter",2.4532788620547611E-3,"Metre",6,676.8,4060.7999999999997,0,0]
[19,"19.3.5/354","Providing and laying cement concrete 1:5:10 (1 cement : 5 coarse sand : 10 graded stone aggregate 40 mm nominal size) up to haunches of S.W. pipes including bed concrete as per standard design : 300 mm diameter S.W. pipe",2.0958715101064762E-3,"Metre",6,578.20000000000005,3469.2000000000003,0,0]
[20,"DSR","Not covered above but covered in DSR-2016",1.2082736712247643E-2,"DSR",20000,1,20000,0,0]
["Total ",null,null,{"$f":"SUM(D8:D27)","v":0.9999999988780317},"A","Rs ",null,{"$f":"SUM(H8:H27)","v":1655254.1410000003}]
["In words ",null,null,{"$f":"rup(J28)","v":0}]
[null,"Note -GST extra as applicable"]
[]
[null,"1. Bidder has to quote in above unlocked cell (J-28) only. Item rate shall be calculated automatically. Calculated item rates upto two decimal points may be adjusted w.r.t. gross total amount and it shall be the itemwise final rate for  execution of contract and all other purposes."]
[null,"2. Quoted gross total amount should be considered only if quoted in this excel sheet and print out of this should only be considered for evaluation.  If Price is quoted in any other format other than the Excel Sheet enclosed to the NIT , the offer of the bidder  will be rejected"]
[]
[]
[]
[null,null,null,"(Signature and Seal of  Contractor  )"]